[Event "FIN-ch Women 2018"]
[Site "Helsinki"]
[Date "2018.06.14"]
[Round "4"]
[White "Al-Hamoud, Lyal"]
[Black "Al Argha, Fatima"]
[Result "0-1"]
[ECO "C50"]
[WhiteElo "1382"]
[BlackElo "1436"]
[Annotator "NA"]
[PlyCount "122"]
[EventDate "2018.06.13"]
[EventType "tourn"]
[EventCountry "FIN"]
[SourceTitle "playchess.com"]
[Source "ChessBase"]
[SourceQuality "1"]
[TimeControl "40/5400+30:1800+30"]

1. e4 {[%emt 0:00:00]} e5 {[%emt 0:00:07]} 2. Nf3 {[%emt 0:00:00]} Nc6 {[%emt 0:00:17]} 3. Bc4 {[%emt 0:00:00]} Bc5 {[%emt 0:00:19]} 4. Nc3 {[%emt 0:00:06]} Nf6 {[%emt 0:00:16]} 5. d3 {[%emt 0:00:08]} h6 {[%emt 0:00:36]} 6. O-O {[%emt 0:00:17]} d6 {[%emt 0:00:13]} 7. h3 {[%emt 0:00:07]} O-O {[%emt 0:00:34]} 8. Be3 {[%emt 0:00:22]} Bb6 {[%emt 0:00:20]} 9. a3 {[%emt 0:04:26]} Be6 {[%emt 0:05:58]} 10. Ba2 {[%emt 0:00:34]} Qd7 {[%emt 0:02:08]} 11. Nd5 {[%emt 0:04:13]} Bxd5 {[%emt 0:02:03]} 12. Bxd5 {[%emt 0:00:18]} Nxd5 {[%emt 0:00:24]} 13. exd5 {[%emt 0:00:07]} Ne7 {[%emt 0:00:44]} 14. c4 {[%emt 0:01:17]} Nf5 {[%emt 0:03:40]} 15. Bd2 {[%emt 0:01:19]} Rfe8 {[%emt 0:14:11]} 16. Re1 {[%emt 0:02:15]} c6 {[%emt 0:20:39]} 17. a4 {[%emt 0:02:09]} cxd5 {[%emt 0:00:57]} 18. cxd5 {[%emt 0:00:12]} Ne7 {[%emt 0:00:56]} 19. Qb3 {[%emt 0:02:17]} f5 {[%emt 0:02:21]} 20. Rac1 {[%emt 0:04:19]} Rac8 {[%emt 0:00:43]} 21. Qa2 {[%emt 0:02:08]} f4 {[%emt 0:05:49]} 22. b4 {[%emt 0:06:26]} a6 {[%emt 0:00:56]} 23. a5 {[%emt 0:02:00]} Ba7 {[%emt 0:00:10]} 24. Bc3 {[%emt 0:04:52]} Nf5 {[%emt 0:00:23]} 25. Qa1 {[%emt 0:00:56]} Qb5 {[%emt 0:01:41]} 26. d4 {[%emt 0:05:38]} e4 {[%emt 0:05:16]} 27. Nd2 {[%emt 0:02:03]} Qxd5 {[%emt 0:01:13]} 28. Qb1 {[%emt 0:07:07]} e3 {[%emt 0:10:43]} 29. fxe3 {[%emt 0:01:34]} fxe3 {[%emt 0:01:23]} 30. Qb3 {[%emt 0:03:49]} Qxb3 {[%emt 0:00:16]} 31. Nxb3 {[%emt 0:00:08]} e2 {[%emt 0:03:14]} 32. Kf2 {[%emt 0:02:54]} Rf8 {[%emt 0:06:23]} 33. Kxe2 {[%emt 0:02:03]} Rfe8+ {[%emt 0:01:09]} 34. Kd3 {[%emt 0:00:45]} Kf7 {[%emt 0:00:53]} 35. g4 {[%emt 0:03:14]} Ne7 {[%emt 0:00:06]} 36. Bb2 {[%emt 0:02:04]} Nd5 {[%emt 0:00:40]} 37. Rf1+ {[%emt 0:05:23]} Kg6 {[%emt 0:01:10]} 38. Rce1 {[%emt 0:03:21]} Nxb4+ 39. Kd2 {[%emt 0:01:34]} Rc2+ {[%emt 0:01:34]} 40. Kd1 {[%emt 0:00:00]} Rxe1+ {[%emt 0:00:20]} 41. Rxe1 {[%emt 0:00:28]} Rxb2 {[%emt 0:00:08]} 42. Nd2 {[%emt 0:00:48]} Bxd4 {[%emt 0:01:34]} 43. Re6+ {[%emt 0:00:31]} Kg5 {[%emt 0:00:21]} 44. Nf3+ {[%emt 0:00:56]} Kf4 {[%emt 0:02:56]} 45. Nxd4 {[%emt 0:00:15]} Ra2 {[%emt 0:03:27]} 46. Rxd6 {[%emt 0:05:33]} Rxa5 {[%emt 0:02:12]} 47. Ne2+ {[%emt 0:03:51]} Kf3 {[%emt 0:02:39]} 48. Rb6 {[%emt 0:01:43]} Rd5+ {[%emt 0:01:16]} 49. Kc1 {[%emt 0:02:00]} Nd3+ {[%emt 0:00:38]} 50. Kd2 {[%emt 0:05:27]} Nf2+ {[%emt 0:00:36]} 51. Kc3 {[%emt 0:01:05]} Kxe2 {[%emt 0:00:43]} 52. Rxb7 {[%emt 0:00:33]} Nxh3 {[%emt 0:00:21]} 53. Rxg7 {[%emt 0:00:26]} Rg5 {[%emt 0:00:47]} 54. Rh7 {[%emt 0:00:30]} Rg6 {[%emt 0:01:01]} 55. Rf7 {[%emt 0:00:57]} Nf2 {[%emt 0:00:32]} 56. Kb4 {[%emt 0:01:22]} Nxg4 {[%emt 0:00:30]} 57. Ka5 {[%emt 0:00:13]} h5 {[%emt 0:00:32]} 58. Re7+ {[%emt 0:00:27]} Kf3 {[%emt 0:00:23]} 59. Rc7 {[%emt 0:00:29]} h4 {[%emt 0:00:36]} 60. Rc3+ {[%emt 0:01:04]} Kg2 {[%emt 0:00:56]} 61. Rc2+ {[%emt 0:00:40]} Nf2 0-1

[Event "FIN-ch Women 2018"]
[Site "Helsinki"]
[Date "2018.06.15"]
[Round "5"]
[White "Nazarova, Anastasia"]
[Black "Norlamo, Sarabella"]
[Result "1-0"]
[ECO "B32"]
[WhiteElo "2137"]
[BlackElo "1847"]
[Annotator "NA"]
[PlyCount "61"]
[EventDate "2018.06.13"]
[EventType "tourn"]
[EventCountry "FIN"]
[SourceTitle "playchess.com"]
[Source "ChessBase"]
[SourceQuality "1"]
[TimeControl "40/5400+30:1800+30"]

1. e4 {[%emt 0:00:00]} c5 {[%emt 0:00:05]} 2. Nf3 {[%emt 0:00:00]} Nc6 {[%emt 0:00:06]} 3. d4 {[%emt 0:00:00]} cxd4 {[%emt 0:00:05]} 4. Nxd4 {[%emt 0:00:00]} e5 {[%emt 0:00:06]} 5. Nb5 {[%emt 0:00:00]} d6 {[%emt 0:00:07]} 6. N1c3 {[%emt 0:00:08]} a6 {[%emt 0:00:10]} 7. Na3 {[%emt 0:00:15]} b5 {[%emt 0:00:08]} 8. Nd5 {[%emt 0:00:08]} Nf6 {[%emt 0:00:11]} 9. Bg5 {[%emt 0:00:16]} Be7 {[%emt 0:00:08]} 10. Bxf6 {[%emt 0:00:12]} Bxf6 {[%emt 0:00:06]} 11. c3 {[%emt 0:00:13]} O-O {[%emt 0:00:29]} 12. Nc2 {[%emt 0:00:14]} Bg5 {[%emt 0:00:39]} 13. a4 {[%emt 0:00:50]} bxa4 {[%emt 0:00:27]} 14. Rxa4 {[%emt 0:00:39]} a5 {[%emt 0:01:11]} 15. Bc4 {[%emt 0:00:15]} Rb8 {[%emt 0:00:06]} 16. b3 {[%emt 0:00:20]} Kh8 {[%emt 0:01:58]} 17. Nce3 {[%emt 0:01:40]} Bxe3 {[%emt 0:07:45]} 18. Nxe3 {[%emt 0:00:27]} g6 {[%emt 0:03:07]} 19. O-O {[%emt 0:05:56]} f5 {[%emt 0:09:29]} 20. exf5 {[%emt 0:08:28]} gxf5 {[%emt 0:01:17]} 21. Qf3 {[%emt 0:17:01]} Bb7 {[%emt 0:20:50]} 22. Bd5 {[%emt 0:00:30]} e4 {[%emt 0:04:40]} 23. Qh5 {[%emt 0:12:11]} Ne7 {[%emt 0:13:45]} 24. Bxb7 {[%emt 0:10:26]} Rxb7 {[%emt 0:00:07]} 25. Qd1 {[%emt 0:02:34]} d5 {[%emt 0:04:29]} 26. Rd4 {[%emt 0:01:46]} Qb8 {[%emt 0:03:36]} 27. Nxd5 {[%emt 0:01:59]} Nxd5 {[%emt 0:00:24]} 28. Rxd5 {[%emt 0:00:06]} Rxb3 {[%emt 0:02:43]} 29. Qd4+ {[%emt 0:00:19]} Kg8 {[%emt 0:00:31]} 30. Rd7 {[%emt 0:00:20]} Rf7 {[%emt 0:02:21]} 31. Rd8+ {[%emt 0:01:20]} 1-0

[Event "FIN-ch Women 2018"]
[Site "Helsinki"]
[Date "2018.06.15"]
[Round "5"]
[White "Dannenberg, Alia"]
[Black "Pelander, Pauliina"]
[Result "1/2-1/2"]
[ECO "B23"]
[WhiteElo "1934"]
[BlackElo "1610"]
[Annotator "NA"]
[PlyCount "54"]
[EventDate "2018.06.13"]
[EventType "tourn"]
[EventCountry "FIN"]
[SourceTitle "playchess.com"]
[Source "ChessBase"]
[SourceQuality "1"]
[TimeControl "40/5400+30:1800+30"]

1. e4 {[%emt 0:00:00]} c5 {[%emt 0:00:13]} 2. Nc3 {[%emt 0:00:00]} e6 {[%emt 0:00:26]} 3. g3 {[%emt 0:00:00]} Nc6 {[%emt 0:02:23]} 4. Bg2 {[%emt 0:00:00]} b6 {[%emt 0:01:11]} 5. d3 {[%emt 0:00:11]} Bb7 {[%emt 0:00:35]} 6. Nge2 {[%emt 0:01:05]} Nf6 {[%emt 0:01:07]} 7. h3 {[%emt 0:00:36]} g6 {[%emt 0:09:21]} 8. Be3 {[%emt 0:01:45]} Bg7 {[%emt 0:01:23]} 9. Qd2 {[%emt 0:00:22]} d5 {[%emt 0:01:24]} 10. exd5 {[%emt 0:02:35]} Nxd5 {[%emt 0:00:25]} 11. Bh6 {[%emt 0:01:24]} Bxh6 {[%emt 0:06:46]} 12. Qxh6 {[%emt 0:00:14]} Qf6 {[%emt 0:00:07]} 13. O-O {[%emt 0:23:16]} Ne5 {[%emt 0:02:46]} 14. Ne4 {[%emt 0:02:48]} Qe7 {[%emt 0:04:10]} 15. c4 {[%emt 0:12:30]} f5 {[%emt 0:04:42]} 16. cxd5 {[%emt 0:02:01]} fxe4 {[%emt 0:02:33]} 17. dxe4 {[%emt 0:00:22]} exd5 {[%emt 0:01:22]} 18. exd5 {[%emt 0:00:25]} O-O-O {[%emt 0:00:37]} 19. Nc3 {[%emt 0:01:14]} Qf7 {[%emt 0:02:46]} 20. f4 {[%emt 0:06:30]} Nc4 {[%emt 0:01:08]} 21. Rf2 {[%emt 0:06:42]} Ne3 {[%emt 0:00:36]} 22. f5 {[%emt 0:03:59]} Nxg2 {[%emt 0:13:09]} 23. fxg6 {[%emt 0:03:39]} Qxg6 {[%emt 0:07:14]} 24. Qxg6 {[%emt 0:01:16]} hxg6 {[%emt 0:00:04]} 25. Kxg2 {[%emt 0:00:08]} b5 {[%emt 0:05:22]} 26. Nxb5 {[%emt 0:09:41]} Bxd5+ {[%emt 0:03:53]} 27. Kh2 {[%emt 0:01:10]} Kb7 {[%emt 0:10:29]} 1/2-1/2

[Event "FIN-ch Women 2018"]
[Site "Helsinki"]
[Date "2018.06.15"]
[Round "5"]
[White "Turunen, Tiina"]
[Black "Al-Hamoud, Lyal"]
[Result "1-0"]
[ECO "A46"]
[WhiteElo "1665"]
[BlackElo "1382"]
[Annotator "NA"]
[PlyCount "213"]
[EventDate "2018.06.13"]
[EventType "tourn"]
[EventCountry "FIN"]
[SourceTitle "playchess.com"]
[Source "ChessBase"]
[SourceQuality "1"]
[TimeControl "40/5400+30:1800+30"]

1. d4 {[%emt 0:00:00]} Nf6 {[%emt 0:00:07]} 2. Nf3 {[%emt 0:00:04]} d5 {[%emt 0:00:35]} 3. h3 {[%emt 0:00:33]} Nc6 {[%emt 0:00:14]} 4. Bf4 {[%emt 0:00:26]} Bf5 {[%emt 0:01:14]} 5. c3 {[%emt 0:00:27]} h6 {[%emt 0:00:16]} 6. e3 {[%emt 0:00:34]} a6 {[%emt 0:00:09]} 7. Bd3 {[%emt 0:00:20]} Bd7 {[%emt 0:01:21]} 8. Nbd2 {[%emt 0:00:28]} e6 {[%emt 0:00:21]} 9. O-O {[%emt 0:01:32]} Na7 {[%emt 0:00:51]} 10. e4 {[%emt 0:00:30]} Bb5 {[%emt 0:01:58]} 11. Bxb5+ {[%emt 0:01:59]} Nxb5 {[%emt 0:00:41]} 12. Re1 {[%emt 0:01:36]} Be7 {[%emt 0:00:59]} 13. a4 {[%emt 0:02:32]} Na7 {[%emt 0:00:43]} 14. Qe2 {[%emt 0:01:46]} c6 {[%emt 0:00:51]} 15. e5 {[%emt 0:00:55]} Nd7 {[%emt 0:01:04]} 16. c4 {[%emt 0:01:27]} b5 {[%emt 0:03:05]} 17. cxd5 {[%emt 0:02:43]} cxd5 {[%emt 0:00:39]} 18. Rec1 {[%emt 0:00:39]} O-O 19. Nb3 Bb4 {[%emt 0:08:17]} 20. Bd2 {[%emt 0:01:27]} Bxd2 {[%emt 0:01:15]} 21. Qxd2 {[%emt 0:00:27]} Qb6 {[%emt 0:00:56]} 22. a5 {[%emt 0:00:13]} Qb7 {[%emt 0:00:54]} 23. Nc5 {[%emt 0:01:46]} Nxc5 {[%emt 0:00:35]} 24. Rxc5 {[%emt 0:01:41]} Rfc8 {[%emt 0:01:16]} 25. b4 {[%emt 0:01:14]} Rc6 {[%emt 0:00:24]} 26. Ne1 {[%emt 0:00:39]} Rac8 {[%emt 0:00:29]} 27. Nd3 {[%emt 0:00:14]} R8c7 {[%emt 0:01:37]} 28. f4 {[%emt 0:00:37]} g6 {[%emt 0:01:51]} 29. g4 {[%emt 0:01:01]} Kg7 {[%emt 0:01:05]} 30. Rf1 {[%emt 0:00:19]} f5 {[%emt 0:01:20]} 31. exf6+ {[%emt 0:00:59]} Kxf6 {[%emt 0:00:27]} 32. Qe3 {[%emt 0:00:18]} Kg7 {[%emt 0:02:26]} 33. Qe5+ {[%emt 0:00:45]} Kh7 {[%emt 0:00:24]} 34. f5 {[%emt 0:01:27]} gxf5 {[%emt 0:01:01]} 35. gxf5 {[%emt 0:01:28]} Rg7+ {[%emt 0:01:26]} 36. Kh2 {[%emt 0:00:21]} exf5 {[%emt 0:00:46]} 37. Qxf5+ {[%emt 0:02:14]} Kh8 {[%emt 0:00:44]} 38. Qxd5 {[%emt 0:01:57]} Qb8+ {[%emt 0:01:59]} 39. Ne5 {[%emt 0:01:55]} Rcg6 {[%emt 0:02:59]} 40. Kh1 {[%emt 0:00:57]} Rg3 {[%emt 0:33:01]} 41. Qe6 {[%emt 0:01:38]} Qg8 {[%emt 0:00:00]} 42. Qxg8+ {[%emt 0:02:26]} Kxg8 {[%emt 0:00:00]} 43. Nf3 {[%emt 0:01:12]} Rxh3+ {[%emt 0:00:00]} 44. Nh2 {[%emt 0:00:38]} Rd3 {[%emt 0:00:00]} 45. Rd5 {[%emt 0:01:08]} Nc6 {[%emt 0:00:00]} 46. Rd6 {[%emt 0:00:23]} Nxb4 {[%emt 0:00:00]} 47. Rxh6 {[%emt 0:00:49]} Rxd4 {[%emt 0:00:00]} 48. Rhf6 {[%emt 0:05:25]} Rd8 {[%emt 0:00:00]} 49. Rb1 {[%emt 0:02:14]} Rd4 {[%emt 0:00:00]} 50. Nf3 {[%emt 0:02:46]} Rc4 {[%emt 0:00:00]} 51. Rh6 {[%emt 0:01:05]} Nc6 {[%emt 0:00:00]} 52. Nd2 {[%emt 0:04:07]} Rd4 {[%emt 0:00:00]} 53. Nf3 {[%emt 0:01:59]} Rc4 {[%emt 0:00:00]} 54. Kh2 {[%emt 0:03:36]} Ra4 {[%emt 0:00:00]} 55. Kh1 {[%emt 0:00:48]} Nxa5 {[%emt 0:00:00]} 56. Rxa6 {[%emt 0:00:35]} b4 {[%emt 0:00:00]} 57. Ra8+ {[%emt 0:01:26]} Kh7 {[%emt 0:00:00]} 58. Rb8 {[%emt 0:01:23]} b3 {[%emt 0:00:00]} 59. Rb5 {[%emt 0:00:53]} Nc4 {[%emt 0:00:00]} 60. R1xb3 {[%emt 0:01:46]} Nd2 {[%emt 0:00:00]} 61. Rh5+ {[%emt 0:01:04]} Kg6 {[%emt 0:00:45]} 62. Rg5+ {[%emt 0:00:23]} Kh6 {[%emt 0:00:07]} 63. Rb6+ {[%emt 0:00:41]} Kh7 {[%emt 0:00:12]} 64. Rh5+ {[%emt 0:05:36]} Kg8 {[%emt 0:00:24]} 65. Nxd2 {[%emt 0:00:38]} Ra1+ {[%emt 0:00:28]} 66. Nb1 {[%emt 0:00:40]} Rc7 {[%emt 0:00:59]} 67. Kg2 {[%emt 0:02:08]} Rc2+ {[%emt 0:00:25]} 68. Kf3 {[%emt 0:00:57]} Rc1 {[%emt 0:00:18]} 69. Nd2 {[%emt 0:00:32]} Rc3+ {[%emt 0:00:46]} 70. Kf4 {[%emt 0:00:44]} Ra4+ {[%emt 0:00:52]} 71. Ne4 {[%emt 0:00:44]} Rc7 {[%emt 0:00:38]} 72. Re6 {[%emt 0:02:41]} Rf7+ {[%emt 0:00:49]} 73. Kg4 {[%emt 0:02:10]} Rg7+ {[%emt 0:01:11]} 74. Kh4 Kf7 75. Rf6+ {[%emt 0:04:59]} Ke7 {[%emt 0:01:40]} 76. Re5+ {[%emt 0:03:51]} Kd7 {[%emt 0:00:10]} 77. Kh5 {[%emt 0:02:01]} Kc7 {[%emt 0:01:14]} 78. Nc5 {[%emt 0:00:48]} Ra1 {[%emt 0:01:01]} 79. Ne6+ {[%emt 0:00:21]} Kd6 {[%emt 0:00:19]} 80. Nxg7+ {[%emt 0:06:22]} Kxe5 {[%emt 0:00:12]} 81. Rf5+ {[%emt 0:00:52]} Ke4 {[%emt 0:00:35]} 82. Rg5 {[%emt 0:03:19]} Rh1+ {[%emt 0:00:51]} 83. Kg6 {[%emt 0:00:09]} Rf1 {[%emt 0:00:07]} 84. Ne8 {[%emt 0:00:37]} Rf8 {[%emt 0:00:26]} 85. Nd6+ {[%emt 0:01:31]} Kf4 {[%emt 0:00:38]} 86. Rb5 {[%emt 0:01:15]} Rg8+ {[%emt 0:01:07]} 87. Kf6 {[%emt 0:00:24]} Rh8 {[%emt 0:00:40]} 88. Rb4+ {[%emt 0:00:26]} Kg3 {[%emt 0:00:22]} 89. Ke5 {[%emt 0:01:59]} Rh5+ {[%emt 0:00:32]} 90. Nf5+ {[%emt 0:00:20]} Kf3 {[%emt 0:00:26]} 91. Rb3+ {[%emt 0:00:26]} Ke2 {[%emt 0:00:08]} 92. Ke4 {[%emt 0:00:34]} Kd2 {[%emt 0:00:46]} 93. Rd3+ {[%emt 0:00:56]} Kc2 {[%emt 0:00:20]} 94. Ne3+ {[%emt 0:02:38]} Kb2 {[%emt 0:00:42]} 95. Rd6 {[%emt 0:01:43]} Kc3 {[%emt 0:00:36]} 96. Rc6+ {[%emt 0:00:44]} Kb4 {[%emt 0:00:16]} 97. Rc4+ {[%emt 0:03:47]} Kb5 {[%emt 0:00:36]} 98. Kd3 {[%emt 0:00:27]} Rh3 {[%emt 0:00:19]} 99. Rc8 {[%emt 0:01:53]} Kb6 {[%emt 0:00:11]} 100. Kd4 {[%emt 0:00:33]} Kb7 {[%emt 0:00:06]} 101. Rc3 {[%emt 0:00:22]} Kb6 {[%emt 0:00:05]} 102. Nd5+ {[%emt 0:00:28]} Kb5 {[%emt 0:00:09]} 103. Rxh3 {[%emt 0:00:08]} Ka5 {[%emt 0:00:11]} 104. Kc4 {[%emt 0:02:17]} Ka6 {[%emt 0:00:13]} 105. Kc5 {[%emt 0:01:03]} Ka7 {[%emt 0:00:05]} 106. Kc6 {[%emt 0:01:01]} Ka6 {[%emt 0:00:05]} 107. Ra3# {[%emt 0:00:28]} 1-0

[Event "FIN-ch Women 2018"]
[Site "Helsinki"]
[Date "2018.06.15"]
[Round "5"]
[White "Ristoja, Aulikki"]
[Black "Al Najar, Huda"]
[Result "1-0"]
[ECO "A45"]
[WhiteElo "1565"]
[BlackElo "1719"]
[Annotator "NA"]
[PlyCount "116"]
[EventDate "2018.06.13"]
[EventType "tourn"]
[EventCountry "FIN"]
[SourceTitle "playchess.com"]
[Source "ChessBase"]
[SourceQuality "1"]
[TimeControl "40/5400+30:1800+30"]

1. d4 {[%emt 0:00:00]} Nf6 {[%emt 0:00:30]} 2. Bf4 {[%emt 0:00:30]} d6 {[%emt 0:00:30]} 3. e3 {[%emt 0:00:30]} g6 {[%emt 0:00:30]} 4. h3 {[%emt 0:00:30]} Bg7 {[%emt 0:00:30]} 5. Nc3 {[%emt 0:00:30]} Nbd7 {[%emt 0:00:41]} 6. Nf3 {[%emt 0:01:15]} O-O {[%emt 0:00:26]} 7. g4 {[%emt 0:00:42]} c5 {[%emt 0:07:37]} 8. d5 {[%emt 0:03:48]} Qa5 {[%emt 0:02:20]} 9. Qd2 {[%emt 0:03:00]} Nb6 {[%emt 0:02:07]} 10. e4 {[%emt 0:01:29]} Nfd7 {[%emt 0:02:06]} 11. Bh6 {[%emt 0:02:12]} Ne5 {[%emt 0:12:01]} 12. Nxe5 {[%emt 0:01:06]} dxe5 {[%emt 0:02:01]} 13. Bxg7 {[%emt 0:01:09]} Kxg7 {[%emt 0:00:01]} 14. f4 {[%emt 0:02:54]} f6 {[%emt 0:02:28]} 15. Be2 {[%emt 0:02:10]} exf4 {[%emt 0:01:38]} 16. Qxf4 {[%emt 0:01:11]} Na4 {[%emt 0:00:53]} 17. Qd2 {[%emt 0:03:57]} Nxb2 {[%emt 0:03:31]} 18. Rb1 {[%emt 0:04:44]} Na4 {[%emt 0:00:23]} 19. Nb5 {[%emt 0:05:51]} Qxd2+ {[%emt 0:04:29]} 20. Kxd2 {[%emt 0:00:03]} a6 {[%emt 0:01:32]} 21. Nc7 {[%emt 0:01:39]} Ra7 {[%emt 0:01:05]} 22. c4 {[%emt 0:00:43]} b6 {[%emt 0:02:18]} 23. Ne6+ {[%emt 0:00:09]} Bxe6 {[%emt 0:00:12]} 24. dxe6 {[%emt 0:00:02]} Rd8+ {[%emt 0:00:12]} 25. Kc2 {[%emt 0:00:43]} Rd4 {[%emt 0:02:34]} 26. Rhd1 {[%emt 0:01:09]} Kf8 {[%emt 0:06:14]} 27. Rxd4 {[%emt 0:00:45]} cxd4 {[%emt 0:00:02]} 28. Kd3 {[%emt 0:00:27]} Nc5+ {[%emt 0:00:40]} 29. Kxd4 {[%emt 0:00:40]} Nxe6+ {[%emt 0:01:33]} 30. Ke3 {[%emt 0:00:31]} b5 {[%emt 0:00:41]} 31. cxb5 {[%emt 0:00:21]} axb5 {[%emt 0:00:36]} 32. Rb2 {[%emt 0:01:35]} Nc7 {[%emt 0:03:09]} 33. Bxb5 {[%emt 0:01:01]} Nxb5 {[%emt 0:01:03]} 34. Rxb5 {[%emt 0:00:13]} Rxa2 {[%emt 0:00:02]} 35. Rb3 {[%emt 0:00:29]} Rh2 {[%emt 0:00:09]} 36. Kd4 {[%emt 0:00:09]} e5+ {[%emt 0:00:41]} 37. Kd5 {[%emt 0:00:06]} Kg7 {[%emt 0:06:37]} 38. Ke6 {[%emt 0:01:10]} g5 {[%emt 0:02:31]} 39. Rb7+ {[%emt 0:00:00]} Kg6 {[%emt 0:00:00]} 40. Rf7 {[%emt 0:00:00]} Rf2 {[%emt 0:00:50]} 41. Rf8 {[%emt 0:01:50]} Rf4 {[%emt 0:03:58]} 42. Rg8+ {[%emt 0:12:14]} Kh6 {[%emt 0:00:14]} 43. Kd5 {[%emt 0:01:26]} Rf1 {[%emt 0:03:51]} 44. Ke6 {[%emt 0:01:00]} Re1 {[%emt 0:01:05]} 45. Rf8 {[%emt 0:07:44]} Rxe4 {[%emt 0:08:19]} 46. Rxf6+ {[%emt 0:00:26]} Kg7 {[%emt 0:00:16]} 47. Rf7+ {[%emt 0:01:01]} Kg8 {[%emt 0:01:14]} 48. Rf5 {[%emt 0:01:00]} h6 {[%emt 0:01:22]} 49. Rxe5 {[%emt 0:01:07]} Ra4 {[%emt 0:05:21]} 50. Kf6 {[%emt 0:03:24]} Kf8 {[%emt 0:06:29]} 51. Re6 {[%emt 0:05:21]} Ra3 {[%emt 0:02:36]} 52. Rb6 {[%emt 0:05:10]} Rf3+ {[%emt 0:04:29]} 53. Kg6 {[%emt 0:02:11]} Rxh3 {[%emt 0:00:39]} 54. Rb8+ {[%emt 0:00:44]} Ke7 {[%emt 0:00:23]} 55. Rb7+ {[%emt 0:01:24]} Kd6 {[%emt 0:00:40]} 56. Rh7 {[%emt 0:02:35]} Rg3 {[%emt 0:10:10]} 57. Rxh6 {[%emt 0:00:22]} Rxg4 {[%emt 0:00:02]} 58. Kh5+ {[%emt 0:00:04]} Kd5 1-0

[Event "FIN-ch Women 2018"]
[Site "Helsinki"]
[Date "2018.06.15"]
[Round "5"]
[White "Al Argha, Fatima"]
[Black "Walta, Paivi"]
[Result "0-1"]
[ECO "A40"]
[WhiteElo "1436"]
[BlackElo "1634"]
[Annotator "NA"]
[PlyCount "92"]
[EventDate "2018.06.13"]
[EventType "tourn"]
[EventCountry "FIN"]
[SourceTitle "playchess.com"]
[Source "ChessBase"]
[SourceQuality "1"]
[TimeControl "40/5400+30:1800+30"]

1. d4 {[%emt 0:00:00]} g6 {[%emt 0:00:20]} 2. Bf4 {[%emt 0:00:00]} Bg7 {[%emt 0:00:17]} 3. e3 {[%emt 0:00:05]} d6 {[%emt 0:00:19]} 4. Nf3 {[%emt 0:00:20]} Nd7 {[%emt 0:00:26]} 5. c4 {[%emt 0:01:12]} e5 {[%emt 0:00:26]} 6. Bg3 {[%emt 0:00:43]} Nh6 {[%emt 0:03:55]} 7. h3 {[%emt 0:03:32]} Nf5 {[%emt 0:02:01]} 8. Bh2 {[%emt 0:00:56]} Qe7 {[%emt 0:00:23]} 9. Nc3 {[%emt 0:05:43]} c6 {[%emt 0:01:34]} 10. Be2 {[%emt 0:02:03]} O-O {[%emt 0:01:34]} 11. O-O {[%emt 0:02:08]} Rd8 {[%emt 0:05:36]} 12. Re1 {[%emt 0:08:15]} Nf8 {[%emt 0:02:45]} 13. Qd2 {[%emt 0:16:34]} e4 {[%emt 0:00:56]} 14. Ng5 {[%emt 0:15:58]} Qxg5 {[%emt 0:00:11]} 15. Nxe4 {[%emt 0:00:08]} Qe7 {[%emt 0:00:30]} 16. Nc3 {[%emt 0:00:19]} Ne6 {[%emt 0:02:00]} 17. d5 {[%emt 0:06:23]} Ng5 {[%emt 0:02:20]} 18. dxc6 {[%emt 0:03:32]} bxc6 {[%emt 0:00:12]} 19. Rad1 {[%emt 0:01:05]} Bb7 {[%emt 0:02:19]} 20. e4 {[%emt 0:04:08]} Nd4 {[%emt 0:01:17]} 21. Bg4 {[%emt 0:02:43]} h5 {[%emt 0:00:13]} 22. h4 {[%emt 0:01:14]} Nge6 {[%emt 0:00:58]} 23. Bh3 {[%emt 0:00:36]} Qf8 {[%emt 0:04:25]} 24. Bxe6 {[%emt 0:01:48]} fxe6 {[%emt 0:00:36]} 25. Qe3 {[%emt 0:01:33]} Nc2 {[%emt 0:00:28]} 26. Qh3 {[%emt 0:02:20]} Nxe1 {[%emt 0:00:24]} 27. Rxe1 {[%emt 0:01:26]} e5 {[%emt 0:00:26]} 28. Re3 {[%emt 0:00:21]} Bc8 {[%emt 0:00:23]} 29. Qg3 {[%emt 0:00:12]} Kh7 {[%emt 0:01:00]} 30. Rf3 {[%emt 0:01:50]} Qe7 {[%emt 0:00:11]} 31. Ne2 {[%emt 0:02:23]} Bf6 {[%emt 0:04:12]} 32. Rc3 {[%emt 0:05:53]} Bxh4 {[%emt 0:00:29]} 33. Qe3 {[%emt 0:00:22]} Bg5 {[%emt 0:02:05]} 34. Qd3 {[%emt 0:00:38]} Ba6 {[%emt 0:02:33]} 35. f4 {[%emt 0:01:46]} exf4 {[%emt 0:00:11]} 36. Bxf4 {[%emt 0:00:10]} Bf6 {[%emt 0:01:09]} 37. Ra3 {[%emt 0:00:50]} Bc8 {[%emt 0:00:24]} 38. Ng3 {[%emt 0:01:35]} a5 {[%emt 0:06:51]} 39. Nxh5 {[%emt 0:03:07]} Be5 {[%emt 0:00:22]} 40. Bxe5 {[%emt 0:00:00]} dxe5 {[%emt 0:00:16]} 41. Qf3 {[%emt 0:04:32]} Rf8 {[%emt 0:00:32]} 42. Qe2 {[%emt 0:00:56]} Qg5 {[%emt 0:00:22]} 43. Ng3 {[%emt 0:01:06]} Bg4 {[%emt 0:00:51]} 44. Qd3 {[%emt 0:02:36]} Rad8 {[%emt 0:00:49]} 45. Qb3 {[%emt 0:02:01]} Rd1+ {[%emt 0:00:27]} 46. Kh2 {[%emt 0:00:21]} Qh4# {[%emt 0:00:07]} 0-1

[Event "FIN-ch Women 2018"]
[Site "Helsinki"]
[Date "2018.06.16"]
[Round "6"]
[White "Norlamo, Sarabella"]
[Black "Dannenberg, Alia"]
[Result "1/2-1/2"]
[ECO "E61"]
[WhiteElo "1847"]
[BlackElo "1934"]
[Annotator "NA"]
[PlyCount "47"]
[EventDate "2018.06.13"]
[EventType "tourn"]
[EventCountry "FIN"]
[SourceTitle "playchess.com"]
[Source "ChessBase"]
[SourceQuality "1"]
[TimeControl "40/5400+30:1800+30"]

1. d4 {[%emt 0:00:00]} Nf6 {[%emt 0:00:01]} 2. c4 {[%emt 0:00:00]} g6 {[%emt 0:00:01]} 3. Nc3 {[%emt 0:00:00]} Bg7 {[%emt 0:00:02]} 4. Bg5 {[%emt 0:00:06]} d6 {[%emt 0:00:20]} 5. f3 {[%emt 0:00:18]} Nbd7 {[%emt 0:00:18]} 6. e4 {[%emt 0:00:23]} c5 {[%emt 0:03:17]} 7. d5 {[%emt 0:01:21]} Qa5 {[%emt 0:01:43]} 8. Qd2 {[%emt 0:06:46]} h6 {[%emt 0:00:48]} 9. Nb5 {[%emt 0:06:33]} Qxd2+ {[%emt 0:06:59]} 10. Bxd2 {[%emt 0:00:02]} Kd8 {[%emt 0:01:20]} 11. Bc3 {[%emt 0:03:01]} a6 {[%emt 0:01:00]} 12. Na3 {[%emt 0:00:06]} Rg8 {[%emt 0:01:36]} 13. Bd3 {[%emt 0:05:02]} g5 {[%emt 0:01:59]} 14. Ne2 {[%emt 0:07:40]} Kc7 {[%emt 0:01:51]} 15. Ng3 {[%emt 0:02:51]} Ne5 {[%emt 0:01:01]} 16. Be2 {[%emt 0:04:37]} Bd7 {[%emt 0:02:48]} 17. Nf5 {[%emt 0:06:56]} Bxf5 {[%emt 0:01:14]} 18. exf5 {[%emt 0:00:31]} Rae8 {[%emt 0:04:09]} 19. O-O-O {[%emt 0:04:22]} Nfd7 {[%emt 0:01:52]} 20. Nc2 {[%emt 0:02:05]} b6 {[%emt 0:05:36]} 21. g3 {[%emt 0:09:12]} Nf6 {[%emt 0:02:00]} 22. Rhf1 {[%emt 0:05:44]} Ned7 {[%emt 0:00:56]} 23. Bd3 {[%emt 0:00:50]} Nh5 {[%emt 0:05:16]} 24. Bxg7 {[%emt 0:03:34]} 1/2-1/2